fUST/lending_fUST_20250729
["ID","MTS","AMOUNT","RATE_DAILY","PERIOD"]
[375848602,1753759844941,-494.94,0.00020547,2]
[375848604,1753759844951,-460.0,0.00020547,2]
[375848606,1753759844961,-460.0,0.00020547,2]
[375848608,1753759844970,-1600.49,0.00020547,2]
[375848610,1753759844981,-498.86,0.00020547,2]
[375848612,1753759844992,-460.0,0.00020547,2]
[375848614,1753759845001,-460.0,0.00020547,2]
[375848616,1753759845010,-1073.91,0.00020547,2]
[375848618,1753759845019,-460.0,0.00020547,2]
[375848620,1753759845028,-460.0,0.00020547,2]
[375848622,1753759845039,-531.0,0.00020547,2]
[375848624,1753759845048,-899.66,0.00020547,2]
[375848626,1753759845058,-540.54786066,0.00020547,2]
[375848628,1753759845068,-460.0,0.00020547,2]
[375848630,1753759845078,-460.0,0.00020547,2]
[375848632,1753759845087,-460.0,0.00020547,2]
[375848634,1753759845097,-460.0,0.00020547,2]
[375848636,1753759845106,-460.0,0.00020547,2]
[375848638,1753759845116,-460.0,0.00020547,2]
[375848640,1753759845125,-978.46,0.00020547,2]
[375848642,1753759845135,-460.0,0.00020547,2]
[375848644,1753759845144,-460.0,0.00020547,2]
[375848646,1753759845153,-460.0,0.00020547,2]
[375848648,1753759845163,-473.11,0.00020547,2]
[375848649,1753759845172,-504.44,0.00020547,2]
[375848651,1753759845181,-3607.21,0.00020547,2]
[375848653,1753759845191,-2881.35,0.00020547,2]
[375848655,1753759845201,-1159.46,0.00020547,2]
[375848657,1753759845211,-460.0,0.00020547,2]
[375848659,1753759845220,-372.24587722,0.00020547,2]
[375848661,1753759845230,-460.0,0.00020547,2]
[375848663,1753759845240,-514.74,0.00020547,2]
[375848665,1753759845250,-464.9,0.00020547,2]
[375848667,1753759845259,-560.09,0.00020547,2]
[375848669,1753759845271,-1403.11,0.00020547,2]
[375848671,1753759845280,-1492.62,0.00020547,2]
[375848673,1753759845290,-460.0,0.00020547,2]
[375848675,1753759845299,-460.0,0.00020547,2]
[375848677,1753759845311,-1547.7,0.00020547,2]
[375848679,1753759845321,-162.505461,0.00020548,2]
[375848681,1753759845330,-1680.0,0.00020579,2]
[375848683,1753759845342,-211.0,0.00020579,2]
[375848684,1753759845352,-495.46640796,0.00020584,2]
[375848686,1753759845362,-352.0,0.00020679,2]
[375848688,1753759845371,-154.32137,0.00020767,2]
[375848690,1753759845380,-4310.0,0.00020773,2]
[375848692,1753759845390,-1000.0,0.000208,3]
[375848694,1753759845400,-465.84,0.00020812,3]
[375848696,1753759845410,-267.05403903,0.00020812,2]
[375848698,1753759845419,-460.0,0.00020821,2]
[375848700,1753759845429,-460.0,0.00020821,2]
[375848702,1753759845439,-898.48,0.00020821,2]
[375848704,1753759845449,-460.0,0.00020821,2]
[375848706,1753759845459,-460.0,0.00020821,2]
[375848708,1753759845468,-460.0,0.00020821,2]
[375848710,1753759845478,-460.0,0.00020821,2]
[375848712,1753759845488,-902.02,0.00020821,2]
[375848714,1753759845498,-460.0,0.00020821,2]
[375848716,1753759845507,-460.0,0.00020821,2]
[375848718,1753759845517,-460.0,0.00020821,2]
[375848720,1753759845526,-472.17624758,0.00020821,2]
[375848722,1753759845536,-232.95913182,0.00020821,2]
[375848724,1753759845546,-460.0,0.00020821,2]
[375848726,1753759845555,-363.48477288,0.00020821,2]
[375848728,1753759845565,-326.88044497,0.00020821,2]
[375848730,1753759845575,-970.82,0.00020821,2]
[375848732,1753759845584,-460.0,0.00020821,2]
[375848734,1753759845593,-460.0,0.00020821,2]
[375848736,1753759845603,-174.69611066,0.00020821,2]
[375848738,1753759845612,-523.58,0.00020821,2]
[375848740,1753759845622,-494.94,0.00020821,2]
[375848742,1753759845631,-460.0,0.00020821,2]
[375848744,1753759845641,-460.0,0.00020821,2]
[375848746,1753759845650,-1600.49,0.00020821,2]
[375848748,1753759845660,-498.86,0.00020821,2]
[375848750,1753759845669,-460.0,0.00020821,2]
[375848752,1753759845678,-460.0,0.00020821,2]
[375848754,1753759845688,-1073.91,0.00020821,2]
[375848756,1753759845697,-460.0,0.00020821,2]
[375848758,1753759845707,-460.0,0.00020821,2]
[375848759,1753759845717,-531.0,0.00020821,2]
[375848761,1753759845727,-899.66,0.00020821,2]
[375848763,1753759845736,-460.0,0.00020821,2]
[375848765,1753759845747,-460.0,0.00020821,2]
[375848767,1753759845756,-460.0,0.00020821,2]
[375848769,1753759845765,-460.0,0.00020821,2]
[375848771,1753759845775,-460.0,0.00020821,2]
[375848773,1753759845785,-978.46,0.00020821,2]
[375848775,1753759845794,-460.0,0.00020821,2]
[375848777,1753759845804,-460.0,0.00020821,2]
[375848779,1753759845813,-460.0,0.00020821,2]
[375848781,1753759845822,-473.11,0.00020821,2]
[375848783,1753759845832,-504.44,0.00020821,2]
[375848785,1753759845841,-3607.21,0.00020821,2]
[375848787,1753759845851,-2881.35,0.00020821,2]
[375848789,1753759845860,-1159.46,0.00020821,2]
[375848791,1753759845870,-460.0,0.00020821,2]
[375848793,1753759845880,-460.0,0.00020821,2]
[375848795,1753759845889,-514.74,0.00020821,2]
[375848797,1753759845899,-464.9,0.00020821,2]
[375848799,1753759845909,-1403.11,0.00020821,2]
[375848801,1753759845919,-560.09,0.00020821,2]
[375848803,1753759845928,-460.0,0.00020821,2]
[375848805,1753759845937,-1492.62,0.00020821,2]
[375848807,1753759845947,-460.0,0.00020821,2]
[375848809,1753759845957,-1547.7,0.00020821,2]
[375848811,1753759845966,-201.17728868,0.00020822,2]
[375848813,1753759845975,-151.0,0.00020822,2]
[375848815,1753759845985,-151.0,0.00020822,2]
[375848817,1753759845996,-500.0,0.00020822,2]
[375848819,1753759846005,-197.26163212,0.00020822,2]
[375848821,1753759846014,-317.135338,0.00020854,2]
[375848823,1753759846024,-1500.0,0.00020883,2]
[375848825,1753759846033,-495.46640796,0.00020995,2]
[375848827,1753759846042,-578.0900773,0.00021068,2]
[375848829,1753759846051,-159.6986114,0.00021068,2]
[375848831,1753759846061,-508.44969364,0.00021073,2]
[375848833,1753759846071,-500.0,0.00021073,2]
[375848835,1753759846080,-500.0,0.00021073,2]
[375848837,1753759846090,-500.0,0.00021073,2]
[375848839,1753759846099,-460.0,0.00021095,2]
[375848841,1753759846109,-460.0,0.00021095,2]
[375848843,1753759846119,-898.48,0.00021095,2]
[375848845,1753759846130,-325.0,0.00021095,2]
[375848847,1753759846139,-325.0,0.00021095,2]
[375848849,1753759846149,-325.0,0.00021095,2]
[375848851,1753759846158,-325.0,0.00021095,2]
[375848853,1753759846168,-460.0,0.00021095,2]
[375848874,1753759846372,-411.03845016,0.00021095,2]
[375848877,1753759846413,-460.0,0.00021095,2]
[375848879,1753759846424,-460.0,0.00021095,2]
[375848881,1753759846435,-902.02,0.00021095,2]
[375848883,1753759846445,-460.0,0.00021095,2]
[375848885,1753759846455,-227.01811604,0.00021095,2]
[375848886,1753759846465,-542.84423276,0.00021095,2]
[375848888,1753759846475,-460.0,0.00021095,2]
[375848890,1753759846485,-160.0,0.00021095,2]
[375848892,1753759846500,-166.0,0.00021095,2]
[375848893,1753759846509,-166.0,0.00021095,2]
[375848895,1753759846519,-160.0,0.00021095,2]
[375848897,1753759846528,-160.0,0.00021095,2]
[375848898,1753759846537,-166.0,0.00021095,2]
[375848900,1753759846547,-160.0,0.00021095,2]
[375848902,1753759846558,-166.0,0.00021095,2]
[375848904,1753759846567,-160.0,0.00021095,2]
[375848906,1753759846577,-166.0,0.00021095,2]
[375848907,1753759846588,-166.0,0.00021095,2]
[375848909,1753759846597,-325.0,0.00021095,2]
[375848911,1753759846607,-166.0,0.00021095,2]
[375848913,1753759846617,-325.0,0.00021095,2]
[375848915,1753759846626,-166.0,0.00021095,2]
[375848916,1753759846635,-325.0,0.00021095,2]
[375848918,1753759846645,-325.0,0.00021095,2]
[375848920,1753759846655,-172.0,0.00021095,2]
[375848922,1753759846665,-325.0,0.00021095,2]
[375848923,1753759846675,-325.0,0.00021095,2]
[375848925,1753759846684,-325.0,0.00021095,2]
[375848927,1753759846694,-325.0,0.00021095,2]
[375848929,1753759846707,-325.0,0.00021095,2]
[375848930,1753759846717,-325.0,0.00021095,2]
[375848932,1753759846727,-325.0,0.00021095,2]
[375848934,1753759846736,-325.0,0.00021095,2]
[375848936,1753759846754,-325.0,0.00021095,2]
[375848938,1753759846765,-325.0,0.00021095,2]
[375848940,1753759846782,-325.0,0.00021095,2]
[375848942,1753759846792,-293.0,0.00021095,2]
[375848944,1753759846803,-1755.0,0.00021095,2]
[375848945,1753759846814,-1755.0,0.00021095,2]
[375848947,1753759846824,-1755.0,0.00021095,2]
[375848949,1753759846834,-1755.0,0.00021095,2]
[375848951,1753759846844,-1755.0,0.00021095,2]
[375848953,1753759846854,-1755.0,0.00021095,2]
[375848954,1753759846864,-1755.0,0.00021095,2]
[375848956,1753759846874,-1755.0,0.00021095,2]
[375848958,1753759846884,-1755.0,0.00021095,2]
[375848960,1753759846894,-1755.0,0.00021095,2]
[375848962,1753759846904,-1755.0,0.00021095,2]
[375848963,1753759846914,-1755.0,0.00021095,2]
[375848965,1753759846924,-1755.0,0.00021095,2]
[375848967,1753759846934,-1755.0,0.00021095,2]
[375848969,1753759846944,-752.7993281,0.00021095,2]
[375848977,1753759847029,-516.98,0.00019178,2]
[375848979,1753759847040,-695.07,0.00019452,2]
[375848980,1753759847050,-695.07,0.00019726,2]
[375848982,1753759847060,-695.07,0.0002,2]
[375848984,1753759847070,-1002.2006719,0.00021095,2]
[375848986,1753759847079,-1717.54003405,0.00021095,2]
[375848988,1753759847089,-970.82,0.00021095,2]
[375848990,1753759847099,-460.0,0.00021095,2]
[375848992,1753759847109,-460.0,0.00021095,2]
[375848993,1753759847118,-523.58,0.00021095,2]
[375848995,1753759847128,-494.94,0.00021095,2]
[375848997,1753759847138,-460.0,0.00021095,2]
[375848999,1753759847147,-460.0,0.00021095,2]
[375849000,1753759847157,-1600.49,0.00021095,2]
[375849002,1753759847167,-498.86,0.00021095,2]
[375849004,1753759847177,-204.28765321,0.00021095,2]
[375849006,1753759847187,-460.0,0.00021095,2]
[375849008,1753759847196,-1073.91,0.00021095,2]
[375849010,1753759847206,-460.0,0.00021095,2]
[375849012,1753759847215,-458.72378916,0.00021095,2]
[375849014,1753759847225,-531.0,0.00021095,2]
[375849015,1753759847234,-899.66,0.00021095,2]
[375849017,1753759847245,-460.0,0.00021095,2]
[375849019,1753759847255,-460.0,0.00021095,2]
[375849021,1753759847268,-460.0,0.00021095,2]
[375849023,1753759847277,-460.0,0.00021095,2]
[375849024,1753759847287,-978.46,0.00021095,2]
[375849026,1753759847297,-460.0,0.00021095,2]
[375849028,1753759847307,-460.0,0.00021095,2]
[375849030,1753759847317,-460.0,0.00021095,2]
[375849032,1753759847327,-473.11,0.00021095,2]
[375849034,1753759847337,-504.44,0.00021095,2]
[375849036,1753759847349,-2881.35,0.00021095,2]
[375849037,1753759847359,-3607.21,0.00021095,2]
[375849039,1753759847369,-1159.46,0.00021095,2]
[375849041,1753759847381,-460.0,0.00021095,2]
[375849043,1753759847391,-460.0,0.00021095,2]
[375849045,1753759847400,-514.74,0.00021095,2]
[375849047,1753759847413,-464.9,0.00021095,2]
[375849049,1753759847430,-1403.11,0.00021095,2]
[375849051,1753759847448,-560.09,0.00021095,2]
[375849053,1753759847459,-460.0,0.00021095,2]
[375849055,1753759847468,-1492.62,0.00021095,2]
[375849056,1753759847480,-154.0,0.00021095,2]
[375849058,1753759847491,-154.0,0.00021095,2]
[375849060,1753759847501,-460.0,0.00021095,2]
[375849062,1753759847510,-325.0,0.00021095,2]
[375849064,1753759847520,-325.0,0.00021095,2]
[375849066,1753759847529,-325.0,0.00021095,2]
[375849068,1753759847540,-325.0,0.00021095,2]
[375849069,1753759847550,-325.0,0.00021095,2]
[375849071,1753759847559,-325.0,0.00021095,2]
[375849073,1753759847569,-325.0,0.00021095,2]
[375849075,1753759847579,-325.0,0.00021095,2]
[375849077,1753759847588,-325.0,0.00021095,2]
[375849079,1753759847598,-325.0,0.00021095,2]
[375849080,1753759847607,-325.0,0.00021095,2]
[375849082,1753759847618,-325.0,0.00021095,2]
[375849084,1753759847627,-1547.7,0.00021095,2]
[375849086,1753759847637,-246.49792385,0.00021096,2]
[375849088,1753759847647,-151.0,0.00021096,2]
[375849090,1753759847656,-500.0,0.00021096,2]
[375849092,1753759847666,-572.72634877,0.0002111,5]
[375849093,1753759847675,-873.558,0.00021116,2]
[375849095,1753759847685,-200.0,0.00021144,15]
[375849097,1753759847696,-200.0,0.00021144,15]
[375849098,1753759847706,-200.0,0.00021144,15]
[375849100,1753759847716,-200.0,0.00021144,15]
[375849102,1753759847725,-320.0,0.00021144,15]
[375849104,1753759847735,-265.0,0.0002115,2]
[375849106,1753759847747,-151.0,0.000212,4]
[375849108,1753759847756,-265.0,0.00021203,2]
[375849110,1753759847767,-151.0,0.00021207,2]
[375849112,1753759847776,-151.0,0.00021207,2]
[375849113,1753759847786,-151.0,0.00021207,2]
[375849115,1753759847796,-265.0,0.00021262,2]
[375849117,1753759847806,-163.62022234,0.00021281,2]
[375849119,1753759847817,-151.0,0.000213,3]
[375849121,1753759847827,-429.1,0.00021337,4]
[375849123,1753759847837,-450.16186571,0.00021369,2]
[375849125,1753759847847,-460.0,0.00021369,2]
[375849126,1753759847857,-898.48,0.00021369,2]
[375849128,1753759847868,-460.0,0.00021369,2]
[375849130,1753759847877,-460.0,0.00021369,2]
[375849132,1753759847886,-460.0,0.00021369,2]
[375849134,1753759847895,-902.02,0.00021369,2]
[375849136,1753759847907,-460.0,0.00021369,2]
[375849138,1753759847916,-587.04387636,0.00021369,2]
[375849139,1753759847927,-970.82,0.00021369,2]
[375849141,1753759847937,-460.0,0.00021369,2]
[375849143,1753759847947,-460.0,0.00021369,2]
[375849145,1753759847957,-523.58,0.00021369,2]
[375849147,1753759847967,-494.94,0.00021369,2]
[375849149,1753759847976,-460.0,0.00021369,2]
[375849151,1753759847986,-273.39676536,0.00021369,2]
[375849153,1753759848000,-186.60323464,0.00021369,2]
[375849155,1753759848010,-1600.49,0.00021369,2]
[375849157,1753759848020,-498.86,0.00021369,2]
[375849158,1753759848031,-460.0,0.00021369,2]
[375849160,1753759848040,-1073.91,0.00021369,2]
[375849162,1753759848050,-460.0,0.00021369,2]
[375849164,1753759848060,-531.0,0.00021369,2]
[375849166,1753759848071,-899.66,0.00021369,2]
[375849168,1753759848080,-460.0,0.00021369,2]
[375849169,1753759848091,-460.0,0.00021369,2]
[375849171,1753759848100,-460.0,0.00021369,2]
[375849173,1753759848111,-460.0,0.00021369,2]
[375849175,1753759848120,-978.46,0.00021369,2]
[375849177,1753759848130,-460.0,0.00021369,2]
[375849179,1753759848140,-460.0,0.00021369,2]
[375849180,1753759848150,-460.0,0.00021369,2]
[375849182,1753759848161,-473.11,0.00021369,2]
[375849184,1753759848171,-504.44,0.00021369,2]
[375849186,1753759848181,-2881.35,0.00021369,2]
[375849188,1753759848192,-3607.21,0.00021369,2]
[375849190,1753759848202,-1159.46,0.00021369,2]
[375849192,1753759848211,-460.0,0.00021369,2]
[375849193,1753759848222,-460.0,0.00021369,2]
[375849195,1753759848232,-514.74,0.00021369,2]
[375849197,1753759848244,-464.9,0.00021369,2]
[375849199,1753759848254,-1403.11,0.00021369,2]
[375849201,1753759848266,-460.0,0.00021369,2]
[375849203,1753759848278,-560.09,0.00021369,2]
[375849204,1753759848288,-1492.62,0.00021369,2]
[375849207,1753759848298,-67.43092483,0.00021369,2]
[375849210,1753759848325,-392.56907517,0.00021369,2]
[375849212,1753759848335,-269.41961589,0.00021369,2]
[375849322,1753759849623,-1069.03893575,0.00021369,2]
[375849324,1753759849635,-209.24144836,0.00021369,2]
[375849326,1753759849644,-283.41724126,0.0002137,2]
[375849328,1753759849655,-500.0,0.0002137,2]
[375849330,1753759849665,-553.96582747,0.000214,2]
[375849332,1753759849675,-1710.87595849,0.000214,2]
[375849334,1753759849687,-502.77148807,0.000214,2]
[375849336,1753759849699,-80.37851193,0.000214,2]
[375849351,1753759849899,-281.98128384,0.00019178,2]
[375849352,1753759849909,-101.74871616,0.00020273,2]
[375849353,1753759850049,-460.0,0.00019178,2]
[375849354,1753759850059,-460.0,0.00019178,2]
[375849355,1753759850068,-460.0,0.00019452,2]
[375849356,1753759850077,-250.25,0.00019726,2]
[375849357,1753759850088,-593.32128384,0.00020273,2]
[375849358,1753759850097,-695.07,0.00020547,2]
[375849359,1753759850107,-695.07,0.00020821,2]
[375849360,1753759850116,-695.07,0.00021095,2]
[375849361,1753759850125,-695.07,0.00021369,2]
[375849362,1753759850135,-919.62148807,0.000214,2]
[375849363,1753759850145,-150.121698,0.000214,2]
[375849364,1753759850155,-495.46640796,0.00021406,2]
[375849365,1753759850165,-160.0,0.00021419,3]
[375849366,1753759850174,-500.0,0.00021431,2]
[375849367,1753759850183,-275.73512213,0.00021473,2]
[375852213,1753760048958,-222.15660986,0.00018506,2]
[375852215,1753760259976,2799.28481412,0.00026027,120]
[375852220,1753760368880,223.3729,0.00026357,120]
[375852222,1753760622947,167.381741,0.00013699,2]
[375852224,1753760741661,273.0735887,0.00018076,2]
[375852225,1753760787628,293.1414052,0.00018077,2]
[375852227,1753760835139,-197.87053435,0.00018895,2]
[375852228,1753760835161,-174.81691309,0.00018978,2]
[375852229,1753760835182,-609.72257412,0.00018995,2]
[375852230,1753760835204,-313.13,0.00019068,3]
[375852231,1753760835225,-156.56,0.00019068,3]
[375852232,1753760835246,-469.71,0.00019068,3]
[375852233,1753760835266,-829.52,0.00019068,3]
[375852234,1753760835287,-1200.0,0.00019072,2]
[375852235,1753760835308,-300.0,0.00019075,2]
[375852236,1753760835330,-300.0,0.00019076,2]
[375852237,1753760835352,-1200.0,0.00019076,2]
[375852238,1753760835374,-500.0,0.00019077,2]
[375852239,1753760835395,-500.0,0.00019077,2]
[375852240,1753760835415,-500.0,0.00019077,2]
[375852241,1753760835438,-243.90357339,0.00019077,2]
[375852242,1753760835460,-500.0,0.00019077,2]
[375852243,1753760835482,-366.46669028,0.00019077,2]
[375852244,1753760835503,-500.0,0.00019077,2]
[375852245,1753760835524,-500.0,0.00019077,2]
[375852246,1753760835545,-1312.57100028,0.00019078,2]
[375852247,1753760844125,-1040.364,0.00019078,2]
[375852260,1753761032350,-152.96479891,0.00018978,2]
[375852261,1753761032360,-300.0,0.00019077,2]
[375852262,1753761032369,-856.11909664,0.00019078,2]
[375852263,1753761032378,-2727.60865254,0.00019078,2]
[375852264,1753761032387,-6014.47598252,0.00019078,2]
[375852337,1753761038030,-463.68597516,0.00019078,2]
[375852340,1753761038047,-1878.78470062,0.00019078,2]
[375852347,1753761038084,-692.31562641,0.00019078,2]
[375852360,1753761038193,-217948.136947,0.00019078,2]
[375852361,1753761038207,-17892.17176634,0.00019078,2]
[375852362,1753761038220,-504.35309638,0.00019173,2]
[375852363,1753761038233,-500.90390723,0.00019173,2]
[375852364,1753761038248,-500.0,0.00019173,2]
[375852365,1753761038261,-500.9656945,0.00019173,2]
[375852366,1753761038272,-500.71229568,0.00019173,2]
[375852367,1753761038299,-505.35491217,0.00019173,2]
[375852368,1753761038319,-464.6650665,0.00019178,2]
[375852369,1753761038335,-460.0,0.00019178,2]
[375852370,1753761038352,-355.03680545,0.00019178,2]
[375852371,1753761038368,-460.0,0.00019178,2]
[375852372,1753761038384,-560.62521777,0.00019178,2]
[375852373,1753761038396,-460.0,0.00019178,2]
[375852374,1753761038410,-502.15089526,0.00019178,2]
[375852375,1753761038420,-458.34087184,0.00019178,2]
[375852376,1753761038432,-460.0,0.00019178,2]
[375852377,1753761038446,-462.3832443,0.00019178,2]
[375852378,1753761038457,-460.0,0.00019178,2]
[375852379,1753761038471,-460.0,0.00019178,2]
[375852380,1753761038485,-460.0,0.00019178,2]
[375852381,1753761038498,-460.0,0.00019178,2]
[375852382,1753761038513,-460.0,0.00019178,2]
[375852383,1753761038527,-461.55186778,0.00019178,2]
[375852384,1753761038542,-460.0,0.00019178,2]
[375852385,1753761038555,-460.0,0.00019178,2]
[375852386,1753761038570,-460.0,0.00019178,2]
[375852387,1753761038584,-460.0,0.00019178,2]
[375852388,1753761038598,-461.42283346,0.00019178,2]
[375852389,1753761038609,-274.64888894,0.00019178,2]
[375852390,1753761038621,-460.0,0.00019178,2]
[375852391,1753761038634,-460.0,0.00019178,2]
[375852392,1753761038645,-462.68177106,0.00019178,2]
[375852393,1753761038658,-460.0,0.00019178,2]
[375852394,1753761038671,-460.0,0.00019178,2]
[375852395,1753761038686,-460.0,0.00019178,2]
[375852396,1753761038701,-460.0,0.00019178,2]
[375852397,1753761038712,-460.0,0.00019178,2]
[375852398,1753761038723,-460.0,0.00019178,2]
[375852399,1753761038736,-460.0,0.00019178,2]
[375852400,1753761038750,-460.0,0.00019178,2]
[375852401,1753761038764,-460.0,0.00019178,2]
[375852402,1753761038776,-460.0,0.00019178,2]
[375852403,1753761038791,-460.0,0.00019178,2]
[375852404,1753761038802,-460.0,0.00019178,2]
[375852405,1753761038813,-460.0,0.00019178,2]
[375852406,1753761038823,-460.0,0.00019178,2]
[375852407,1753761038835,-460.0,0.00019178,2]
[375852408,1753761038847,-460.0,0.00019178,2]
[375852409,1753761038864,-460.0,0.00019178,2]
[375852410,1753761038886,-460.0,0.00019178,2]
[375852411,1753761038899,-460.0,0.00019178,2]
[375852412,1753761038911,-460.0,0.00019178,2]
[375852413,1753761038924,-402.95249439,0.00019178,2]
[375852414,1753761038938,-463.61198885,0.00019178,2]
[375852415,1753761038951,-460.0,0.00019178,2]
[375852416,1753761038964,-211.57049026,0.00019178,2]
[375852417,1753761038976,-385.84491392,0.00019178,2]
[375852418,1753761038989,-460.0,0.00019178,2]
[375852419,1753761039003,-460.0,0.00019178,2]
[375852420,1753761039015,-460.0,0.00019178,2]
[375852421,1753761039029,-460.0,0.00019178,2]
[375852422,1753761039044,-475.91132029,0.00019178,2]
[375852423,1753761039057,-460.0,0.00019178,2]
[375852424,1753761039068,-460.0,0.00019178,2]
[375852425,1753761039080,-463.49377099,0.00019178,2]
[375852426,1753761039092,-460.0,0.00019178,2]
[375852427,1753761039104,-460.0,0.00019178,2]
[375852428,1753761039116,-460.0,0.00019178,2]
[375852429,1753761039128,-460.0,0.00019178,2]
[375852430,1753761039140,-460.0,0.00019178,2]
[375852431,1753761039152,-1000.0,0.00019178,2]
[375852432,1753761039164,-463.55455404,0.00019178,2]
[375852433,1753761039176,-460.0,0.00019178,2]
[375852434,1753761039188,-353.96447249,0.00019178,2]
[375852435,1753761039199,-460.0,0.00019178,2]
[375852436,1753761039211,-460.0,0.00019178,2]
[375852437,1753761039223,-464.48587296,0.00019178,2]
[375852438,1753761039235,-483.15861471,0.00019178,2]
[375852439,1753761039248,-460.0,0.00019178,2]
[375852440,1753761039260,-462.71843929,0.00019178,2]
[375852441,1753761039273,-460.0,0.00019178,2]
[375852442,1753761039285,-460.0,0.00019178,2]
[375852443,1753761039298,-460.0,0.00019178,2]
[375852444,1753761039312,-460.0,0.00019178,2]
[375852445,1753761039326,-465.04992067,0.00019178,2]
[375852446,1753761039338,-460.0,0.00019178,2]
[375852447,1753761039352,-472.3873183,0.00019178,2]
[375852448,1753761039364,-460.0,0.00019178,2]
[375852449,1753761039376,-460.0,0.00019178,2]
[375852450,1753761039388,-460.0,0.00019178,2]
[375852451,1753761039400,-460.0,0.00019178,2]
[375852453,1753761039412,-460.0,0.00019178,2]
[375852455,1753761039424,-161.17675163,0.00019178,2]
[375852456,1753761039436,-460.0,0.00019178,2]
[375852457,1753761039449,-460.0,0.00019178,2]
[375852458,1753761039461,-460.0,0.00019178,2]
[375852459,1753761039472,-460.0,0.00019178,2]
[375852460,1753761039484,-460.0,0.00019178,2]
[375852461,1753761039495,-460.0,0.00019178,2]
[375852462,1753761039507,-460.76455898,0.00019178,2]
[375852463,1753761039519,-544.21595373,0.00019178,2]
[375852464,1753761039530,-460.0,0.00019178,2]
[375852465,1753761039542,-460.0,0.00019178,2]
[375852466,1753761039553,-369.44801671,0.00019178,2]
[375852467,1753761039566,-460.0,0.00019178,2]
[375852468,1753761039577,-214.96422526,0.00019178,2]
[375852469,1753761039589,-460.0,0.00019178,2]
[375852470,1753761039601,-460.0,0.00019178,2]
[375852471,1753761039612,-460.0,0.00019178,2]
[375852472,1753761039625,-460.0,0.00019178,2]
[375852473,1753761039638,-460.0,0.00019178,2]
[375852474,1753761039651,-460.0,0.00019178,2]
[375852475,1753761039663,-460.0,0.00019178,2]
[375852476,1753761039676,-460.0,0.00019178,2]
[375852477,1753761039688,-460.0,0.00019178,2]
[375852478,1753761039699,-460.0,0.00019178,2]
[375852479,1753761039711,-553.04529743,0.00019178,2]
[375852480,1753761039723,-460.0,0.00019178,2]
[375852481,1753761039735,-460.0,0.00019178,2]
[375852482,1753761039746,-460.0,0.00019178,2]
[375852483,1753761039759,-460.0,0.00019178,2]
[375852485,1753761039770,-460.0,0.00019178,2]
[375852487,1753761039782,-460.0,0.00019178,2]
[375852489,1753761039794,-460.0,0.00019178,2]
[375852491,1753761039807,-460.0,0.00019178,2]
[375852493,1753761039818,-460.0,0.00019178,2]
[375852496,1753761039830,-460.0,0.00019178,2]
[375852498,1753761039842,-460.0,0.00019178,2]
[375852500,1753761039854,-436.87151439,0.00019178,2]
[375852502,1753761039865,-461.58316653,0.00019178,2]
[375852504,1753761039875,-460.0,0.00019178,2]